bitfinex/quotes_ETHUSD_20250708
["timestamp","ask_amount","ask_price","bid_price","bid_amount"]
[1751940590238,5.26318174,2531.3,2531.2,1e-08]
[1751940592926,0.1978,2531.3,2531.2,0.81330001]
[1751940593113,3.1998,2531.3,2531.2,1.49394978]
[1751940593531,3.1998,2531.3,2531.2,0.81330001]
[1751940594846,0.1978,2531.3,2531.2,0.81330001]
[1751940595024,3.003,2531.3,2531.2,0.81330001]
[1751940595738,0.001,2531.3,2531.2,0.81330001]
[1751940595938,3.002,2531.3,2531.2,0.81330001]
[1751940596115,3.002,2531.3,2531.2,1.88905039]
[1751940597713,0.001,2531.3,2531.2,1.88905039]
[1751940597910,0.001,2531.3,2531.2,11.83094344]
[1751940598228,0.001,2531.3,2531.2,12.02774344]
[1751940600314,0.001,2531.3,2531.2,8.07704812]
[1751940601836,0.001,2531.3,2531.2,12.02774344]
[1751940602138,0.001,2531.3,2531.2,8.07704812]
[1751940603944,0.001,2531.3,2531.2,12.02774344]
[1751940604452,0.001,2531.3,2531.2,8.07704812]
[1751940604621,0.001,2531.3,2531.2,2.08585039]
[1751940608622,0.001,2531.3,2531.2,2.10608629]
[1751940609668,0.001,2531.3,2531.2,8.09728402]
[1751940609866,0.001,2531.3,2531.2,8.07704812]
[1751940611074,0.001,2531.3,2531.2,22.02774344]
[1751940611573,0.001,2531.3,2531.2,18.07704812]
[1751940611870,0.001,2531.3,2531.2,2.08585039]
[1751940615536,0.001,2531.3,2531.2,6.03654571]
[1751940616071,0.001,2531.3,2531.2,2.08585039]
[1751940618086,0.001,2531.3,2531.2,0.19680001]
[1751940620775,0.001,2531.3,2531.2,1e-08]
[1751940620979,5.32333924,2531.3,2531.2,1e-08]
[1751940623488,1.3728,2531.3,2531.2,1e-08]
[1751940623962,5.32333924,2531.3,2531.2,1e-08]
[1751940624371,6.72161861,2531.3,2531.2,1e-08]
[1751940624685,2.77107937,2531.3,2531.2,1e-08]
[1751940625390,6.41227937,2531.3,2531.2,1e-08]
[1751940625592,5.014,2531.3,2531.2,1e-08]
[1751940626449,9.78343924,2531.3,2531.2,1e-08]
[1751940630099,1.3699,2531.3,2531.2,1e-08]
[1751940630287,5.88328174,2531.3,2531.2,1e-08]
[1751940635327,0.60038174,2531.3,2531.2,1e-08]
[1751940635483,5.06438174,2531.3,2531.2,1e-08]
[1751940635898,3.552,2531.3,2531.2,1e-08]
[1751940648621,3.60138174,2531.3,2531.2,1e-08]
[1751940649620,3.552,2531.3,2531.2,1e-08]
[1751940654936,0.001,2531.3,2531.2,0.76250001]
[1751940655471,0.05038174,2531.3,2531.2,0.76250001]
[1751940656139,0.05038174,2531.3,2531.2,1e-08]
[1751940657076,0.24718174,2531.3,2531.2,1e-08]
[1751940657242,0.96692932,2531.3,2531.2,1e-08]
[1751940657442,1.33592995,2531.3,2531.2,1e-08]
[1751940658840,1.33592995,2531.3,2530.8,0.75140001]
[1751940659041,0.24718174,2531.3,2530.8,0.75140001]
[1751940659378,1.07398174,2531.3,2530.8,0.75140001]
[1751940661276,4.5007594,2531.2,2530.7,0.0426942]
[1751940661476,0.24618564,2531.1,2530.7,0.0426942]
[1751940662579,0.55,2531.0,2530.7,0.0426942]
[1751940662747,0.24618954,2530.9,2530.7,0.0426942]
[1751940665882,0.04938954,2530.9,2530.7,0.0426942]
[1751940669582,1.463,2531.3,2530.8,0.8127]
[1751940669753,3.56509785,2531.2,2530.8,1.69638466]
[1751940669953,3.1968,2531.2,2530.8,1.69638466]
[1751940670588,3.24618369,2531.2,2530.8,1.69638466]
[1751940672089,0.24618369,2531.2,2530.8,1.69638466]
[1751940672924,0.24618369,2531.2,2530.8,1.0095]
[1751940673401,1.07118369,2531.2,2530.8,0.1968]
[1751940674197,0.24618369,2531.2,2530.8,0.1968]
[1751940674401,0.24618369,2531.2,2530.9,0.755]
[1751940677077,3.0,2531.3,2530.9,0.9518]
[1751940677403,3.0,2531.3,2530.9,1.65036919]
[1751940677404,0.04938369,2531.2,2530.9,1.65036919]
[1751940677970,0.001,2531.3,2530.9,1.65036919]
[1751940678179,0.001,2531.3,2531.2,0.8188]
[1751940681127,0.1978,2531.3,2530.8,1.0047]
[1751940681315,0.04938369,2531.2,2530.8,1.0047]
[1751940685029,1.3379,2531.1,2530.7,0.0426942]
[1751940685230,0.1968,2530.9,2530.7,0.0426942]
[1751940685409,0.04939149,2530.8,2530.7,0.0426942]
[1751940686933,0.85529149,2530.8,2530.7,0.0426942]
[1751940688335,1.40529149,2530.8,2530.7,0.0426942]
[1751940688516,5.35661123,2530.8,2530.7,0.0426942]
[1751940688715,6.64067795,2530.8,2530.7,0.0426942]
[1751940690040,2.68935821,2530.8,2530.7,0.0426942]
[1751940691408,1.40529149,2530.8,2530.7,0.0426942]
[1751940692707,5.35661123,2530.8,2530.7,0.0426942]
[1751940694033,5.72463484,2530.8,2530.7,0.0426942]
[1751940694233,5.72462575,2530.8,2530.7,0.0426942]
[1751940694443,5.67212575,2530.8,2530.7,0.0426942]
[1751940694626,7.58685486,2530.8,2530.7,0.0426942]
[1751940695532,17.58685486,2530.8,2530.7,0.0426942]
[1751940695840,17.53727429,2530.8,2530.7,0.0426942]
[1751940697045,17.53727429,2530.8,2530.6,0.002]
[1751940697046,5.31207587,2530.7,2530.6,0.002]
[1751940697212,16.95808118,2530.7,2530.6,0.002]
[1751940697411,16.90868774,2530.7,2530.6,0.002]
[1751940698739,15.49680774,2530.7,2530.6,0.002]
[1751940699044,16.95880774,2530.7,2530.6,0.002]
[1751940705650,15.95661001,2530.7,2530.6,0.002]
[1751940705945,20.59940937,2530.7,2530.6,0.002]
[1751940706315,17.60040937,2530.7,2530.6,0.002]
[1751940706518,20.96598416,2530.7,2530.6,0.002]
[1751940708247,13.20490829,2530.7,2530.6,0.002]
[1751940708551,16.20390829,2530.7,2530.6,0.002]
[1751940708749,5.01,2530.7,2530.6,0.002]
[1751940708954,5.05939344,2530.7,2530.6,0.002]
[1751940710154,0.59939344,2530.7,2530.6,0.002]
[1751940710466,5.2068,2530.7,2530.6,0.002]
[1751940711555,5.25619344,2530.7,2530.6,0.002]
[1751940712622,5.2068,2530.7,2530.6,0.002]
[1751940719770,0.7468,2530.7,2530.6,0.002]
[1751940719952,3.1958,2530.7,2530.6,0.002]
[1751940720154,0.1968,2530.7,2530.6,0.002]
[1751940720343,1.461,2531.0,2530.7,0.7964]
[1751940720537,2.999,2530.9,2530.7,0.7964]
[1751940720734,0.1968,2531.1,2530.7,0.7964]
[1751940720976,0.001,2531.2,2530.9,1.0187]
[1751940721159,0.001,2531.2,2531.1,0.8219]
[1751940721352,0.001,2531.2,2531.1,1.03893979]
[1751940721558,0.001,2531.2,2531.1,1.0187]
[1751940722375,0.001,2531.2,2531.1,1.03893979]
[1751940722553,0.001,2531.2,2531.1,1.81205252]
[1751940722744,0.001,2531.2,2531.1,1.79181273]
[1751940725283,0.001,2531.2,2531.1,1.0187]
[1751940726089,0.001,2531.2,2531.1,4.98979119]
[1751940726247,0.001,2531.2,2531.1,10.98098892]
[1751940726444,0.001,2531.2,2531.1,10.96074913]
[1751940726642,0.001,2531.2,2531.1,4.9695514]
[1751940726843,0.001,2531.2,2531.1,6.46072476]
[1751940729086,0.001,2531.2,2531.1,2.50987336]
[1751940729246,0.001,2531.2,2531.1,1.0187]
[1751940730762,0.001,2531.2,2531.1,4.9695514]
[1751940731163,0.001,2531.2,2531.1,1.0187]
[1751940731590,0.001,2531.2,2531.1,10.96074913]
[1751940737285,0.001,2531.2,2531.1,7.9665514]
[1751940737590,0.001,2531.2,2531.1,9.75743605]
[1751940738291,0.001,2531.2,2531.1,5.80658465]
[1751940738661,0.001,2531.2,2531.1,2.80958465]
[1751940738976,0.001,2531.2,2531.1,4.0157]
[1751940741292,0.001,2531.2,2531.1,0.1968]
[1751940741998,0.001,2531.2,2531.0,0.1968]
[1751940747309,0.05038369,2531.2,2531.0,0.1968]
[1751940747611,0.52934115,2531.2,2531.0,0.1968]
[1751940747762,0.05038369,2531.2,2531.0,0.1968]
[1751940749791,0.05038369,2531.2,2530.6,0.002]
[1751940749997,0.05038369,2531.2,2530.7,0.1968]
[1751940752498,3.95088664,2531.1,2530.7,0.1968]
[1751940752672,0.04938759,2531.0,2530.7,0.1968]
[1751940753792,0.80248759,2531.0,2530.7,0.1968]
[1751940757713,4.95030312,2531.0,2530.6,0.002]
[1751940758215,0.8295,2530.8,2530.6,0.002]
[1751940758378,0.04939344,2530.7,2530.6,0.002]
[1751940760484,5.83376661,2530.7,2530.6,0.002]
[1751940760806,15.23893602,2530.7,2530.6,0.002]
[1751940760981,15.18954258,2530.7,2530.6,0.002]
[1751940761183,14.82196434,2530.7,2530.6,0.002]
[1751940763514,15.18925233,2530.7,2530.6,0.002]
[1751940765205,25.18925233,2530.7,2530.6,0.002]
[1751940776151,16.2010546,2530.7,2530.6,0.002]
[1751940776310,20.6580546,2530.7,2530.6,0.002]
[1751940779112,26.64925233,2530.7,2530.6,0.002]
[1751940784116,28.06044579,2530.7,2530.6,0.002]
[1751940784805,28.06044579,2530.7,2530.5,0.002]
[1751940784806,5.52413202,2530.6,2530.5,0.002]
[1751940785009,9.53638074,2530.6,2530.5,0.002]
[1751940785252,9.48710726,2530.6,2530.5,0.002]
[1751940786249,4.50210054,2530.3,2530.2,0.0446942]
[1751940786456,16.68699363,2530.3,2530.2,0.0446942]
[1751940786635,26.63759238,2530.3,2530.2,0.0446942]
[1751940787214,26.63759238,2530.3,2530.1,1e-08]
[1751940787215,15.47025673,2530.2,2530.1,1e-08]
[1751940787546,19.01215004,2530.2,2530.1,1e-08]
[1751940788153,15.27328165,2529.8,2529.7,0.0426942]
[1751940788354,29.4226863,2529.8,2529.7,0.0426942]
[1751940789465,29.05503615,2529.8,2529.7,0.0426942]
[1751940789763,29.42263335,2529.8,2529.7,0.0426942]
[1751940790364,29.61860383,2529.8,2529.7,0.0426942]
[1751940791263,29.42251904,2529.8,2529.7,0.0426942]
[1751940792855,18.97432131,2529.8,2529.7,0.0426942]
[1751940793028,28.01256582,2529.8,2529.7,0.0426942]
[1751940794054,29.42128165,2529.8,2529.7,0.0426942]
[1751940794254,22.02136809,2529.8,2529.7,0.0426942]
[1751940795359,28.01256582,2529.8,2529.7,0.0426942]
[1751940796952,28.01195608,2529.8,2529.7,0.0426942]
[1751940797657,29.41975187,2529.8,2529.7,0.0426942]
[1751940797961,28.01195608,2529.8,2529.7,0.0426942]
[1751940799887,28.01179626,2529.8,2529.7,0.0426942]
[1751940802055,29.41932657,2529.8,2529.7,0.0426942]
[1751940802590,28.01179626,2529.8,2529.7,0.0426942]
[1751940802884,16.24219853,2529.8,2529.7,0.0426942]
[1751940803083,26.69139626,2529.8,2529.7,0.0426942]
[1751940803455,28.00229626,2529.8,2529.7,0.0426942]
[1751940804566,16.79219853,2529.8,2529.7,0.0426942]
[1751940804770,21.25019853,2529.8,2529.7,0.0426942]
[1751940804967,27.24139626,2529.8,2529.7,0.0426942]
[1751940806793,28.04379626,2529.8,2529.7,0.0426942]
[1751940807390,28.04400047,2529.8,2529.7,0.0426942]
[1751940809193,27.24160047,2529.8,2529.7,0.0426942]
[1751940810182,21.25040274,2529.8,2529.7,0.0426942]
[1751940810378,27.24160047,2529.8,2529.7,0.0426942]
[1751940811303,27.99770047,2529.8,2529.7,0.0426942]
[1751940812009,29.40849842,2529.8,2529.7,0.0426942]
[1751940814615,31.16974491,2529.8,2529.7,0.0426942]
[1751940814920,29.40849842,2529.8,2529.7,0.0426942]
[1751940816293,31.76021703,2529.8,2529.7,0.0426942]
[1751940818309,14.5030379,2529.7,2529.6,0.002]
[1751940818524,20.09821245,2529.7,2529.6,0.002]
[1751940820411,19.73129491,2529.7,2529.6,0.002]
[1751940820616,20.09974021,2529.7,2529.6,0.002]
[1751940824130,18.87005673,2529.7,2529.6,0.002]
[1751940824321,21.86805673,2529.7,2529.6,0.002]
[1751940827108,21.86805673,2529.7,2528.5,0.1996]
[1751940827109,30.0,2528.7,2527.6,4.73795102]
[1751940827313,0.8035,2529.2,2527.5,0.8301]
[1751940827314,6.54119773,2527.8,2527.5,0.8301]
[1751940827633,3.97989172,2527.8,2527.5,0.8301]
[1751940827843,0.96789172,2527.8,2527.7,0.8386942]
[1751940828353,0.59945011,2527.8,2527.7,0.8386942]
[1751940828630,0.55,2527.8,2527.7,0.8386942]
[1751940828796,0.55,2527.8,2527.7,0.796]
[1751940829236,13.95579344,2528.0,2527.7,0.796]
[1751940829533,3.2096,2528.2,2527.7,0.9936]
[1751940829695,0.04944424,2528.1,2527.7,0.9936]
[1751940829894,0.24704229,2528.2,2527.7,0.9936]
[1751940830119,0.79704229,2528.2,2527.7,0.9936]
[1751940830530,10.2962531,2528.5,2527.3,14.09595829]
[1751940830531,10.0,2528.5,2527.8,0.02036564]
[1751940830830,0.1976,2528.4,2527.9,0.9999]
[1751940831039,0.59944033,2528.3,2527.9,0.8023]
[1751940831206,3.95541883,2528.2,2527.9,0.8023]
[1751940831535,4.0050203,2528.1,2527.9,0.8023]
[1751940832232,4.5056962,2528.0,2527.9,0.8023]
[1751940833329,3.95616332,2527.8,2527.3,0.7788]
[1751940833538,3.015,2527.8,2527.5,0.7788]
[1751940833731,4.00538068,2527.9,2527.5,0.7788]
[1751940834636,0.59944815,2527.9,2527.5,0.7788]
[1751940835212,4.55531059,2527.9,2527.5,0.7788]
[1751940836039,0.59944815,2527.9,2527.5,0.7788]
[1751940836243,0.55,2527.9,2527.5,0.7788]
[1751940836922,3.9554488,2528.2,2527.5,0.7788]
[1751940837124,0.55,2528.1,2527.5,0.7788]
[1751940837435,4.50558683,2528.1,2527.5,0.7788]
[1751940838359,0.0494462,2528.0,2527.5,0.7788]
[1751940839823,0.55,2528.1,2527.5,0.7788]
[1751940840023,2.06956327,2528.8,2527.5,0.7788]
[1751940840350,3.95523745,2528.3,2527.5,0.7788]
[1751940840538,0.55,2528.1,2527.5,0.7788]
[1751940841144,0.55,2527.9,2527.7,0.8075]
[1751940841325,0.79705011,2527.8,2527.7,0.8075]
[1751940841522,0.55,2527.7,2527.5,0.7761]
[1751940841725,0.24705402,2527.6,2527.5,0.7761]
[1751940843257,0.1976,2527.6,2527.5,0.7761]
[1751940843478,0.04945011,2527.8,2527.5,4.73257873]
[1751940843762,0.1976,2528.9,2528.1,10.0]
[1751940844061,0.1976,2528.9,2528.4,0.7761]
[1751940844234,1.4664138,2529.6,2528.8,0.1976]
[1751940844430,3.041,2529.5,2529.0,0.7761]
[1751940844635,0.2040138,2529.6,2529.2,0.7761]
[1751940845141,0.001,2529.3,2529.2,0.7761]
[1751940845529,0.001,2529.3,2529.2,4.72991938]
[1751940845776,0.001,2529.3,2529.2,16.7585093]
[1751940845937,0.0064138,2529.6,2529.5,24.11833477]
[1751940846367,0.0064138,2529.6,2529.5,24.31593477]
[1751940846675,0.0064138,2529.6,2529.5,14.92705046]
[1751940850984,0.0064138,2529.6,2529.5,17.97205046]
[1751940851291,0.0064138,2529.6,2529.5,21.24939311]
[1751940854990,0.0064138,2529.6,2529.5,51.24939311]
[1751940855163,0.0064138,2529.6,2529.5,42.30706811]
[1751940855358,0.0064138,2529.6,2529.5,35.12331311]
[1751940856089,0.0064138,2529.6,2529.5,34.92919011]
[1751940856478,0.001,2530.1,2530.0,4.74536916]
[1751940856677,0.001,2530.1,2530.0,30.41685347]
[1751940859191,0.001,2530.1,2530.0,14.94296916]
[1751940859358,0.001,2530.1,2530.0,21.02396916]
[1751940859559,0.001,2530.1,2530.0,51.57396916]
[1751940859794,0.001,2530.1,2530.0,55.42286164]
[1751940860605,0.0677797,2530.4,2530.3,3.95210054]
[1751940860769,0.0677797,2530.4,2530.3,45.54914585]
[1751940860969,0.0677797,2530.4,2530.3,43.16853085]
[1751940861169,0.0677797,2530.4,2530.3,42.78028485]
[1751940861410,0.0677797,2530.4,2530.3,44.76518791]
[1751940861904,0.0677797,2530.4,2530.3,43.77228791]
[1751940863290,0.0677797,2530.4,2530.3,33.86228791]
[1751940864806,0.0677797,2530.4,2530.3,16.8924036]
[1751940865020,0.0677797,2530.4,2530.3,22.9724036]
[1751940865605,0.0677797,2530.4,2530.3,16.8924036]
[1751940866008,0.0677797,2530.4,2530.3,22.9694036]
[1751940866615,0.0677797,2530.4,2530.3,22.9684036]
[1751940867588,0.0677797,2530.4,2530.3,49.2919826]
[1751940867888,0.001,2530.7,2530.3,49.2919826]
[1751940867889,0.001,2530.7,2530.6,29.23762102]
[1751940868193,0.0687797,2531.2,2531.1,24.14603571]
[1751940868398,0.0687797,2531.2,2531.1,21.0319514]
[1751940869132,0.0687797,2531.2,2531.1,39.8079254]
[1751940869335,0.0687797,2531.2,2531.1,30.43283571]
[1751940869539,0.0687797,2531.2,2531.1,33.92575472]
[1751940873045,0.0687797,2531.2,2531.1,27.83575472]
[1751940873217,0.0687797,2531.2,2531.1,33.92275472]
[1751940879226,0.0687797,2531.2,2531.1,53.00742072]
[1751940879733,0.0687797,2531.2,2531.1,49.75818172]
[1751940880268,0.0687797,2531.2,2531.1,48.76528172]
[1751940881058,0.0687797,2531.2,2531.1,48.95924502]
[1751940881570,0.0687797,2531.2,2531.1,42.37305702]
[1751940881871,0.0687797,2531.2,2531.1,34.11671802]
[1751940882079,0.0687797,2531.2,2531.1,28.02971802]
[1751940882257,0.0687797,2531.2,2531.1,35.60071802]
[1751940882457,0.0687797,2531.2,2531.1,28.02971802]
[1751940882668,0.0687797,2531.2,2531.1,35.59971802]
[1751940883446,0.0687797,2531.2,2531.1,18.44687041]
[1751940883651,0.0687797,2531.2,2531.1,3.68971901]
[1751940883870,0.0687797,2531.2,2531.1,0.1968]
[1751940884371,0.8355797,2531.2,2531.1,0.1968]
[1751940888578,0.0687797,2531.2,2531.1,4.1476514]
[1751940888875,0.0687797,2531.2,2531.1,14.1476514]
[1751940889070,0.0687797,2531.2,2531.1,16.6471745]
[1751940889442,0.001,2531.2,2531.1,17.4200745]
[1751940896559,0.001,2531.2,2531.1,22.4545815]
[1751940897117,0.001,2531.2,2531.1,17.4200745]
[1751940898401,0.001,2531.2,2531.1,23.4850745]
[1751940899875,0.001,2531.2,2531.1,34.8243205]
[1751940900076,0.001,2531.2,2531.1,42.2349625]
[1751940900404,0.001,2531.2,2531.1,28.6857975]
[1751940901185,0.001,2531.2,2531.1,52.88342781]
[1751940901586,1e-08,2531.2,2531.1,52.88342781]
[1751940902207,1e-08,2531.2,2531.1,62.87395881]
[1751940902508,1e-08,2531.2,2531.1,44.47425081]
[1751940903210,1e-08,2531.2,2531.1,49.92935081]
[1751940903684,1e-08,2531.3,2531.2,13.95069532]
[1751940903884,1e-08,2531.3,2531.2,43.4329258]
[1751940904511,1e-08,2531.5,2531.4,43.95038318]
[1751940904712,1e-08,2531.5,2531.4,59.21056649]
[1751940904915,1e-08,2531.5,2531.4,55.57377297]
[1751940905617,1e-08,2531.5,2531.4,60.30782714]
[1751940906176,0.001,2531.8,2531.7,28.38056907]
[1751940906379,0.001,2531.8,2531.7,34.44256907]
[1751940906579,0.001,2531.8,2531.7,34.63936907]
[1751940906779,1e-08,2531.8,2531.7,37.04611821]
[1751940907011,0.25,2532.2,2532.0,13.94944707]
[1751940907181,0.25,2532.2,2532.0,31.83406607]
[1751940907508,0.25,2532.2,2532.0,23.47344707]
[1751940907712,0.25,2532.2,2532.0,25.97297017]
[1751940909891,0.25,2532.2,2532.0,26.77647017]
[1751940910099,0.25,2532.2,2532.0,39.26230717]
[1751940910401,0.25,2532.2,2532.0,42.39872117]
[1751940910784,0.25,2532.2,2532.0,48.39209535]
[1751940911383,0.25,2532.2,2532.0,49.84312735]
[1751940912083,1e-08,2532.2,2532.1,13.9492911]
[1751940912414,1e-08,2532.2,2532.1,37.35814158]
[1751940912597,1e-08,2532.3,2532.2,40.81663213]
[1751940912786,1e-08,2532.3,2532.2,53.06380631]
[1751940913188,0.001,2532.6,2532.2,53.06380631]
[1751940913189,0.001,2532.6,2532.5,34.71006732]
[1751940913419,0.001,2532.6,2532.5,56.9572415]
[1751940915614,0.001,2532.6,2532.5,50.9002415]
[1751940915809,0.001,2532.6,2532.5,58.4492415]
[1751940916185,0.001,2532.8,2532.7,33.9483555]
[1751940916518,0.001,2532.8,2532.7,58.40247882]
[1751940916720,0.001,2532.8,2532.7,58.59927882]
[1751940917494,0.001,2532.8,2532.7,59.39277882]
[1751940918814,0.001,2533.2,2532.8,43.94819962]
[1751940919016,0.001,2533.2,2532.8,44.70819962]
[1751940919216,0.001,2533.2,2532.8,47.20772272]
[1751940919403,0.001,2533.2,2533.0,27.84837987]
[1751940919621,0.001,2533.2,2533.0,39.89375405]
[1751940919922,0.001,2533.2,2533.0,39.01446205]
[1751940920296,0.001,2533.8,2533.0,39.01446205]
[1751940920297,0.001,2533.8,2533.7,3.94679717]
[1751940920619,0.001,2533.8,2533.7,19.99979717]
[1751940920818,0.001,2533.8,2533.7,22.59911431]
[1751940924911,0.001,2533.8,2533.7,16.05]
[1751940925233,0.7813,2533.8,2533.7,19.99679717]
[1751940925432,0.7813,2533.8,2533.7,16.05]
[1751940926030,0.7813,2533.8,2533.7,10.0]
[1751940926236,0.7813,2533.8,2533.7,16.05]
[1751940926531,0.7813,2533.8,2533.7,10.0]
[1751940927619,0.7813,2533.8,2533.7,13.94679717]
[1751940927801,0.7813,2533.8,2533.7,10.0]
[1751940928001,0.7813,2533.8,2533.7,13.94679717]
[1751940929402,0.7813,2533.8,2533.7,19.99279717]
[1751940930206,0.7813,2533.8,2533.7,20.18959717]
[1751940930408,0.7813,2533.8,2533.7,22.60325018]
[1751940930639,0.001,2533.8,2533.7,22.60325018]
[1751940936849,0.001,2533.8,2533.7,12.61045301]
[1751940937053,0.7961,2533.8,2533.7,19.98779717]
[1751940937544,0.7961,2533.8,2533.7,10.0]
[1751940937948,0.7961,2533.8,2533.7,16.04]
[1751940938149,0.7961,2533.8,2533.7,10.0]
[1751940938320,0.7961,2533.8,2533.7,16.042]
[1751940938521,0.7961,2533.8,2533.7,10.0]
[1751940939153,0.7961,2533.8,2533.7,16.041]
[1751940941250,0.7961,2533.8,2532.8,7.23357727]
[1751940941453,0.7961,2533.8,2532.7,2.40674914]
[1751940941454,0.7532,2533.7,2533.0,0.80438773]
[1751940941763,0.7532,2533.6,2533.1,6.042]
[1751940943153,0.7532,2533.6,2532.7,10.0]
[1751940943460,0.8173,2533.4,2532.8,6.042]
[1751940943754,0.8173,2533.4,2532.9,12.14762835]
[1751940943970,0.8173,2533.4,2533.0,6.042]
[1751940944157,0.8173,2533.4,2532.9,2.14762835]
[1751940944450,0.8173,2533.4,2532.9,6.042]
[1751940944649,0.8173,2533.4,2532.8,6.041]
[1751940944950,0.8173,2533.4,2532.8,18.04193231]
[1751940946926,0.8023,2533.2,2533.0,0.1968]
[1751940947125,0.02907981,2533.3,2532.9,0.1968]
[1751940947126,4.49744775,2533.3,2532.9,0.1968]
[1751940947433,4.49744775,2533.3,2532.7,0.1968]
[1751940947434,1.02817981,2533.2,2532.7,0.1968]
[1751940947643,0.8023,2533.1,2532.7,0.1968]
[1751940948949,0.8023,2533.1,2532.5,19.99363218]
[1751940949155,0.8023,2533.1,2532.7,10.0]
[1751940949386,0.8023,2533.1,2532.7,16.041]
[1751940950353,0.8023,2533.1,2532.7,19.98934436]
[1751940950779,0.8023,2533.1,2532.7,16.041]
[1751940951351,0.8023,2533.1,2532.7,10.0]
[1751940951553,0.8023,2533.1,2532.7,6.041]
[1751940954203,0.8023,2533.1,2532.7,8.0403663]
[1751940958911,0.8023,2533.1,2532.7,6.041]
[1751940959113,0.8023,2533.1,2532.8,0.1968]
[1751940960012,0.8023,2533.1,2532.9,0.03948043]
[1751940960207,0.8023,2533.1,2533.0,0.1968]
[1751940963575,0.8023,2533.1,2532.6,0.002]
[1751940963773,0.8028,2532.9,2532.6,0.1988]
[1751940964739,0.8028,2532.9,2532.8,0.1968]
[1751940965278,0.22587981,2533.2,2532.8,0.1968]
[1751940965279,0.8028,2533.2,2532.8,0.1968]
[1751940965692,0.8028,2533.2,2533.1,0.1968]
[1751940969531,0.8227,2533.5,2533.1,0.1968]
[1751940969722,0.8227,2533.5,2533.3,0.1968]
[1751940970230,0.8227,2533.5,2533.1,4.36215841]
[1751940970530,0.8227,2533.5,2533.4,0.1968]
[1751940970737,0.001,2533.6,2533.4,0.1968]
[1751940971434,0.001,2533.6,2533.4,4.14405976]
[1751940971638,0.001,2533.6,2533.5,0.03947108]
[1751940971825,0.001,2533.6,2533.5,0.23627108]
[1751940972024,0.001,2533.6,2533.5,4.18337982]
[1751940972428,0.001,2533.6,2533.5,4.14390874]
[1751940973239,0.001,2533.6,2533.5,0.1968]
[1751940973912,0.001,2533.6,2533.5,1.30419178]
[1751940976314,0.001,2533.6,2533.5,0.1968]
[1751940978444,0.001,2533.6,2533.4,0.1968]
[1751940980040,0.8144,2533.5,2533.4,0.1968]
[1751940981847,0.8144,2533.5,2533.1,0.1968]
[1751940989938,0.02907981,2533.4,2533.1,0.1968]
[1751940998154,0.8144,2533.5,2533.1,0.1968]
[1751941000087,0.02907981,2533.4,2533.1,0.1968]
[1751941000696,0.8144,2533.5,2533.1,0.1968]
[1751941002291,0.02907981,2533.4,2533.1,0.1968]
[1751941004178,0.22587981,2533.4,2533.0,0.002]
[1751941004489,0.7887,2533.3,2533.0,0.002]
[1751941004694,0.02907981,2533.2,2533.0,0.002]
[1751941006565,0.7887,2533.3,2533.0,0.002]
[1751941009067,0.02907981,2533.2,2533.0,0.002]
[1751941010063,0.7887,2533.3,2533.0,0.002]
[1751941019525,0.02907981,2533.4,2533.0,0.7647]
[1751941019698,0.02907981,2533.4,2533.1,0.1968]
[1751941020441,0.55,2533.1,2533.0,0.002]
[1751941020749,7.35897981,2533.1,2533.0,0.002]
[1751941021496,11.30671183,2533.1,2533.0,0.002]
[1751941021736,11.6470371,2533.1,2533.0,0.002]
[1751941022100,27.63998295,2533.1,2533.0,0.002]
[1751941022307,29.52606006,2533.1,2533.0,0.002]
[1751941022722,30.94361844,2533.1,2533.0,0.002]
[1751941023292,30.94257241,2533.1,2533.0,0.002]
[1751941024234,29.52606006,2533.1,2533.0,0.002]
[1751941025209,23.53311421,2533.1,2533.0,0.002]
[1751941026021,19.58538219,2533.1,2533.0,0.002]
[1751941026220,23.53311421,2533.1,2533.0,0.002]
[1751941026806,19.58538219,2533.1,2533.0,0.002]
[1751941027007,23.53311421,2533.1,2533.0,0.002]
[1751941027626,19.21600474,2533.1,2533.0,0.002]
[1751941027827,20.68900474,2533.1,2533.0,0.002]
[1751941028328,1.3159,2533.1,2533.0,0.002]
[1751941028532,1.472,2533.1,2533.0,0.002]
[1751941028711,7.6838,2533.1,2533.0,0.002]
[1751941028907,8.2338,2533.1,2533.0,0.002]
[1751941030423,2.2188,2533.1,2533.0,0.002]
[1751941030737,8.2338,2533.1,2533.0,0.002]
[1751941030917,0.7468,2533.1,2533.0,0.002]
[1751941031130,6.7618,2533.1,2533.0,0.002]
[1751941031525,6.79087981,2533.1,2533.0,0.002]
[1751941033313,7.59087981,2533.1,2533.0,0.002]
[1751941033501,8.89205987,2533.1,2533.0,0.002]
[1751941033709,8.86298006,2533.1,2533.0,0.002]
[1751941037023,8.06298006,2533.1,2533.0,0.002]
[1751941037227,6.7618,2533.1,2533.0,0.002]
[1751941040111,0.7468,2533.1,2533.0,0.002]
[1751941040312,6.7608,2533.1,2533.0,0.002]
[1751941040530,0.7468,2533.1,2533.0,0.002]
[1751941040729,6.7608,2533.1,2533.0,0.002]
[1751941042233,6.2108,2533.1,2533.0,0.002]
[1751941042553,7.38478798,2533.1,2533.0,0.002]
[1751941042715,8.54587273,2533.1,2533.0,0.002]
[1751941043035,12.4645272,2533.1,2533.0,0.002]
[1751941043554,12.5012272,2533.1,2533.0,0.002]
[1751941043708,24.74458346,2533.1,2533.0,0.002]
[1751941043910,24.74457569,2533.1,2533.0,0.002]
[1751941044144,23.3282272,2533.1,2533.0,0.002]
[1751941044554,24.74446661,2533.1,2533.0,0.002]
[1751941045714,24.74455679,2533.1,2533.0,0.002]
[1751941046416,26.51344949,2533.1,2533.0,0.002]
[1751941047220,36.79344949,2533.1,2533.0,0.002]
[1751941048023,36.79344949,2533.1,2533.0,1e-08]
[1751941049013,36.79344949,2533.1,2532.6,0.002]